Workbook

Sheet Vista Principal
C2: Calculadora de Seguros PP - Scotiabank
B7: 1) Establecer los datos del préstamos
B9: Producto | C9: Préstamos Personales (DXP)
B10: Tipo de Seguro | C10: Seguro de Vida | D10: Seleccionar
B11: Tarifa | C11: TARIFA TITULAR
B12: Monto inicial | C12: 10000 | D12: Digitar
B13: Seguro Desempleo | C13: 0 | D13: Digitar en caso aplique
B14: Monto adicional desempleo | C14: =+H17 -> 0
B15: Prima de Seguro de Desgravamen/Vida | C15: =IF(C10="Seguro de vida",'Proceso Prima de Seguro'!D13, IF(AND(C10="Sin Seguro (Solo LD Garantía Liquida)",C9="Préstamos Personales (LD Garantía Liquida)"),0%, 'Proceso Prima de Seguro'!H16)) -> 0.042
B16: Monto adicional del Seguro | C16: =+C15*C12 -> 420
B17: MAF Inicial | C17: =C12+C14+C16 -> 10420 | G17: =+C12+C16 -> 10420 | H17: =+G17*C13 -> 0 | I17: =+H17+G17 -> 10420
B18: Empleado | C18: =IF(C9="Préstamos Personales (LD Y PA) (Empleados)","SI","NO") -> NO
B19: Moneda | C19: Soles | D19: Seleccionar
B20: Plazo Remanente | C20: 36 | D20: Digitar
B21: Fecha de Desembolso | C21: =TODAY() -> 2022-08-09
B22: Fecha de 1er Pago | C22: 2022-08-31 | D22: Digitar
B23: Cuota Julio | C23: 1 | D23: Digitar 2 en caso de cuota doble
B24: Cuota Diciembre | C24: 1 | D24: Digitar 2 en caso de cuota doble
B25: TEA | C25: 0.3 | D25: Digitar
B26: TEA TOTAL | C26: =+C25 -> 0.3
B27: Monto del Bien | C27: 0
B28: Seguro del Bien | C28: 0
B29: Portes | C29: 0 | D29: Digitar
B30: Cuota | C30: =(C17+(C28*C27+C29)*P34)/O34 -> 421.6657774
B31: 2) Calcular TCEA presionando el botón
B32: TCEA | C32: 0.3821087028
U33: =C17-U34-C14-C16 -> 384.62
O34: =SUM(O36:O395) -> 24.71151457 | P34: =SUM(P36:P395) -> 24.71151457 | U34: =SUM(U36:U395) -> 9615.38
B35: N° Cuota | C35: Fecha de pago | D35: Día | E35: Fecha de pago | F35: Días | G35: Dias Acumulados | H35: Saldo Inicial | I35: Amortización | J35: Interés | K35: Seguro del Bien | L35: Portes | M35: Cuota Constante | N35: Saldo Final | O35: Factor Cronograma | P35: Factor Cronograma 2 | R35: Vector i,1 Cuota | S35: Vector i,2 Días Acum | T35: Vector i,3 Factor | U35: Vector i,4 Calculo VA
B36: 1 | C36: =C22 -> 2022-08-31 | D36: =IF(B36<=$C$20,WEEKDAY(C36,2),"") -> 3 | E36: =IF(D36=7,C36+1,C36) -> 2022-08-31 | F36: =E36-C21 -> 22 | G36: =F36 -> 22 | H36: =C17 -> 10420 | I36: =IF(B36>C$20,"",M36-L36-K36-J36) -> 253.2515278 | J36: =IF(B36>C$20,"",((1+C$25)^(F36/360)-1)*H36) -> 168.4142496 | K36: =IF(B36>C$20,"",C$27*C$28) -> 0 | L36: =IF(B36>C$20,"",C$29) -> 0 | M36: =IF(B36>C$20,"",IF(B36=C$20,H36+J36+K36+L36,IF(AND(C$23=2,MONTH(E36)=7),2*C$30,IF(AND(C$24=2,MONTH(E36)=12),2*C$30,C$30)))) -> 421.6657774 | N36: =IF(B36>C$20,"",H36-I36) -> 10166.74847 | O36: =IFERROR(IF(AND(MONTH(E36)=7,C$23=2),2/(1+C$26)^(G36/360),IF(AND(MONTH(E36)=12,C$24=2),2/(1+C$26)^(G36/360),1/(1+C$26)^(G36/360))),"") -> 0.9840944786 | P36: =IFERROR(1/(1+C$26)^(G36/360),"") -> 0.9840944786 | R36: =IFERROR(I36+J36+K36+L36,"") -> 421.6657774 | S36: =G36 -> 22 | T36: =IFERROR((1+C$32)^(S36/360),"") -> 1.019973034 | U36: =IFERROR(ROUND(R36/T36,2),"") -> 413.41
B37: 2 | C37: =IF(B37>$C$20,"",EDATE(C36,1)) -> 2022-09-30 | D37: 5 | E37: =IF(D37=7,C37+1,C37) -> 2022-09-30 | F37: =IF(B37>C$20,"",E37-E36) -> 30 | G37: =IFERROR(F37+G36,"") -> 52 | H37: =IF(B37>C$20,"",N36) -> 10166.74847 | I37: =IF(B37>C$20,"",M37-L37-K37-J37) -> 196.9353881 | J37: 224.7303893 | K37: 0 | L37: 0 | M37: =IF(B37>C$20,"",IF(B37=C$20,H37+J37+K37+L37,IF(AND(C$23=2,MONTH(E37)=7),2*C$30,IF(AND(C$24=2,MONTH(E37)=12),2*C$30,C$30)))) -> 421.6657774 | N37: 9969.813084 | O37: 0.9628120473 | P37: 0.9628120473 | R37: =IFERROR(I37+J37+K37+L37,"") -> 421.6657774 | S37: 52 | T37: 1.047853432 | U37: 402.41
B38: 3 | C38: 2022-10-30 | D38: 7 | E38: 2022-10-31 | F38: 31 | G38: 83 | H38: 9969.813084 | I38: 193.8593248 | J38: 227.8064526 | K38: 0 | L38: 0 | M38: 421.6657774 | N38: 9775.953759 | O38: 0.9413036162 | P38: 0.9413036162 | R38: 421.6657774 | S38: 83 | T38: 1.077464042 | U38: 391.35
B39: 4 | C39: 2022-11-30 | D39: 3 | E39: 2022-11-30 | F39: 30 | G39: 113 | H39: 9775.953759 | I39: 205.5736905 | J39: 216.0920869 | K39: 0 | L39: 0 | M39: 421.6657774 | N39: 9570.380069 | O39: 0.9209465976 | P39: 0.9209465976 | R39: 421.6657774 | S39: 113 | T39: 1.106915925 | U39: 380.94
B40: 5 | C40: 2022-12-30 | D40: 5 | E40: 2022-12-30 | F40: 30 | G40: 143 | H40: 9570.380069 | I40: 210.117784 | J40: 211.5479934 | K40: 0 | L40: 0 | M40: 421.6657774 | N40: 9360.262285 | O40: 0.9010298283 | P40: 0.9010298283 | R40: 421.6657774 | S40: 143 | T40: 1.137172859 | U40: 370.8
B41: 6 | C41: 2023-01-30 | D41: 1 | E41: 2023-01-30 | F41: 31 | G41: 174 | H41: 9360.262285 | I41: 207.7873297 | J41: 213.8784477 | K41: 0 | L41: 0 | M41: 421.6657774 | N41: 9152.474955 | O41: 0.8809015613 | P41: 0.8809015613 | R41: 421.6657774 | S41: 174 | T41: 1.169307488 | U41: 360.61
B42: 7 | C42: 2023-02-28 | D42: 2 | E42: 2023-02-28 | F42: 29 | G42: 203 | H42: 9152.474955 | I42: 226.1705337 | J42: 195.4952437 | K42: 0 | L42: 0 | M42: 421.6657774 | N42: 8926.304421 | O42: 0.8624791592 | P42: 0.8624791592 | R42: 421.6657774 | S42: 203 | T42: 1.200190503 | U42: 351.33
B43: 8 | C43: 2023-03-28 | D43: 2 | E43: 2023-03-28 | F43: 28 | G43: 231 | H43: 8926.304421 | I43: 237.6434279 | J43: 184.0223495 | K43: 0 | L43: 0 | M43: 421.6657774 | N43: 8688.660994 | O43: 0.845057672 | P43: 0.845057672 | R43: 421.6657774 | S43: 231 | T43: 1.230782312 | U43: 342.6
B44: 9 | C44: 2023-04-28 | D44: 5 | E44: 2023-04-28 | F44: 31 | G44: 262 | H44: 8688.660994 | I44: 223.1331648 | J44: 198.5326126 | K44: 0 | L44: 0 | M44: 421.6657774 | N44: 8465.527829 | O44: 0.8261797771 | P44: 0.8261797771 | R44: 421.6657774 | S44: 262 | T44: 1.26556219 | U44: 333.18
B45: 10 | C45: 2023-05-28 | D45: 7 | E45: 2023-05-29 | F45: 31 | G45: 293 | H45: 8465.527829 | I45: 228.2316731 | J45: 193.4341043 | K45: 0 | L45: 0 | M45: 421.6657774 | N45: 8237.296156 | O45: 0.8077235988 | P45: 0.8077235988 | R45: 421.6657774 | S45: 293 | T45: 1.30132489 | U45: 324.03
B46: 11 | C46: 2023-06-28 | D46: 3 | E46: 2023-06-28 | F46: 30 | G46: 323 | H46: 8237.296156 | I46: 239.5848715 | J46: 182.0809059 | K46: 0 | L46: 0 | M46: 421.6657774 | N46: 7997.711284 | O46: 0.7902554365 | P46: 0.7902554365 | R46: 421.6657774 | S46: 323 | T46: 1.336895885 | U46: 315.41
B47: 12 | C47: 2023-07-28 | D47: 5 | E47: 2023-07-28 | F47: 30 | G47: 353 | H47: 7997.711284 | I47: 244.8807634 | J47: 176.7850139 | K47: 0 | L47: 0 | M47: 421.6657774 | N47: 7752.830521 | O47: 0.7731650479 | P47: 0.7731650479 | R47: 421.6657774 | S47: 353 | T47: 1.373439194 | U47: 307.01
B48: 13 | C48: 2023-08-28 | D48: 1 | E48: 2023-08-28 | F48: 31 | G48: 384 | H48: 7752.830521 | I48: 244.5165366 | J48: 177.1492407 | K48: 0 | L48: 0 | M48: 421.6657774 | N48: 7508.313984 | O48: 0.7558931752 | P48: 0.7558931752 | R48: 421.6657774 | S48: 384 | T48: 1.41225032 | U48: 298.58
B49: 14 | C49: 2023-09-28 | D49: 4 | E49: 2023-09-28 | F49: 31 | G49: 415 | H49: 7508.313984 | I49: 250.1036469 | J49: 171.5621305 | K49: 0 | L49: 0 | M49: 421.6657774 | N49: 7258.210337 | O49: 0.7390071419 | P49: 0.7390071419 | R49: 421.6657774 | S49: 415 | T49: 1.452158184 | U49: 290.37
B50: 15 | C50: 2023-10-28 | D50: 6 | E50: 2023-10-28 | F50: 30 | G50: 445 | H50: 7258.210337 | I50: 261.2270256 | J50: 160.4387518 | K50: 0 | L50: 0 | M50: 421.6657774 | N50: 6996.983312 | O50: 0.72302507 | P50: 0.72302507 | R50: 421.6657774 | S50: 445 | T50: 1.491852124 | U50: 282.65
B51: 16 | C51: 2023-11-28 | D51: 2 | E51: 2023-11-28 | F51: 31 | G51: 476 | H51: 6996.983312 | I51: 261.7873591 | J51: 159.8784183 | K51: 0 | L51: 0 | M51: 421.6657774 | N51: 6735.195953 | O51: 0.7068732832 | P51: 0.7068732832 | R51: 421.6657774 | S51: 476 | T51: 1.534009405 | U51: 274.88
B52: 17 | C52: 2023-12-28 | D52: 4 | E52: 2023-12-28 | F52: 30 | G52: 506 | H52: 6735.195953 | I52: 272.7879712 | J52: 148.8778062 | K52: 0 | L52: 0 | M52: 421.6657774 | N52: 6462.407981 | O52: 0.6915861513 | P52: 0.6915861513 | R52: 421.6657774 | S52: 506 | T52: 1.575940702 | U52: 267.56
B53: 18 | C53: 2024-01-28 | D53: 7 | E53: 2024-01-29 | F53: 32 | G53: 538 | H53: 6462.407981 | I53: 269.1830955 | J53: 152.4826819 | K53: 0 | L53: 0 | M53: 421.6657774 | N53: 6193.224886 | O53: 0.6756441023 | P53: 0.6756441023 | R53: 421.6657774 | S53: 538 | T53: 1.621931515 | U53: 259.98
B54: 19 | C54: 2024-02-28 | D54: 3 | E54: 2024-02-28 | F54: 30 | G54: 568 | H54: 6193.224886 | I54: 284.7679439 | J54: 136.8978335 | K54: 0 | L54: 0 | M54: 421.6657774 | N54: 5908.456942 | O54: 0.6610323455 | P54: 0.6610323455 | R54: 421.6657774 | S54: 568 | T54: 1.666266115 | U54: 253.06
B55: 20 | C55: 2024-03-28 | D55: 4 | E55: 2024-03-28 | F55: 29 | G55: 597 | H55: 5908.456942 | I55: 295.4621838 | J55: 126.2035936 | K55: 0 | L55: 0 | M55: 421.6657774 | N55: 5612.994758 | O55: 0.6472080952 | P55: 0.6472080952 | R55: 421.6657774 | S55: 597 | T55: 1.710274489 | U55: 246.55
B56: 21 | C56: 2024-04-28 | D56: 7 | E56: 2024-04-29 | F56: 32 | G56: 629 | H56: 5612.994758 | I56: 289.2252851 | J56: 132.4404923 | K56: 0 | L56: 0 | M56: 421.6657774 | N56: 5323.769473 | O56: 0.6322890238 | P56: 0.6322890238 | R56: 421.6657774 | S56: 629 | T56: 1.760185576 | U56: 239.56
B57: 22 | C57: 2024-05-28 | D57: 2 | E57: 2024-05-28 | F57: 29 | G57: 658 | H57: 5323.769473 | I57: 307.9510045 | J57: 113.7147728 | K57: 0 | L57: 0 | M57: 421.6657774 | N57: 5015.818469 | O57: 0.6190658862 | P57: 0.6190658862 | R57: 421.6657774 | S57: 658 | T57: 1.806674492 | U57: 233.39
B58: 23 | C58: 2024-06-28 | D58: 5 | E58: 2024-06-28 | F58: 31 | G58: 689 | H58: 5015.818469 | I58: 307.0562253 | J58: 114.6095521 | K58: 0 | L58: 0 | M58: 421.6657774 | N58: 4708.762243 | O58: 0.6052364623 | P58: 0.6052364623 | R58: 421.6657774 | S58: 689 | T58: 1.857728134 | U58: 226.98
B59: 24 | C59: 2024-07-28 | D59: 7 | E59: 2024-07-29 | F59: 31 | G59: 720 | H59: 4708.762243 | I59: 314.0723437 | J59: 107.5934337 | K59: 0 | L59: 0 | M59: 421.6657774 | N59: 4394.6899 | O59: 0.5917159763 | P59: 0.5917159763 | R59: 421.6657774 | S59: 720 | T59: 1.910224466 | U59: 220.74
B60: 25 | C60: 2024-08-28 | D60: 3 | E60: 2024-08-28 | F60: 30 | G60: 750 | H60: 4394.6899 | I60: 324.5235716 | J60: 97.14220576 | K60: 0 | L60: 0 | M60: 421.6657774 | N60: 4070.166328 | O60: 0.5789192836 | P60: 0.5789192836 | R60: 421.6657774 | S60: 750 | T60: 1.962439394 | U60: 214.87
B61: 26 | C61: 2024-09-28 | D61: 6 | E61: 2024-09-28 | F61: 31 | G61: 781 | H61: 4070.166328 | I61: 328.6640185 | J61: 93.00175888 | K61: 0 | L61: 0 | M61: 421.6657774 | N61: 3741.50231 | O61: 0.5659867019 | P61: 0.5659867019 | R61: 421.6657774 | S61: 781 | T61: 2.017894695 | U61: 208.96
B62: 27 | C62: 2024-10-28 | D62: 1 | E62: 2024-10-28 | F62: 30 | G62: 811 | H62: 3741.50231 | I62: 338.9619244 | J62: 82.70385295 | K62: 0 | L62: 0 | M62: 421.6657774 | N62: 3402.540385 | O62: 0.553746441 | P62: 0.553746441 | R62: 421.6657774 | S62: 811 | T62: 2.073052729 | U62: 203.4
B63: 28 | C63: 2024-11-28 | D63: 4 | E63: 2024-11-28 | F63: 31 | G63: 842 | H63: 3402.540385 | I63: 343.9190184 | J63: 77.74675897 | K63: 0 | L63: 0 | M63: 421.6657774 | N63: 3058.621367 | O63: 0.5413761999 | P63: 0.5413761999 | R63: 421.6657774 | S63: 842 | T63: 2.13163378 | U63: 197.81
B64: 29 | C64: 2024-12-28 | D64: 6 | E64: 2024-12-28 | F64: 30 | G64: 872 | H64: 3058.621367 | I64: 354.0566325 | J64: 67.60914489 | K64: 0 | L64: 0 | M64: 421.6657774 | N64: 2704.564734 | O64: 0.5296681759 | P64: 0.5296681759 | R64: 421.6657774 | S64: 872 | T64: 2.189900809 | U64: 192.55
B65: 30 | C65: 2025-01-28 | D65: 2 | E65: 2025-01-28 | F65: 31 | G65: 903 | H65: 2704.564734 | I65: 359.8674976 | J65: 61.79827973 | K65: 0 | L65: 0 | M65: 421.6657774 | N65: 2344.697237 | O65: 0.5178358235 | P65: 0.5178358235 | R65: 421.6657774 | S65: 903 | T65: 2.251783794 | U65: 187.26
B66: 31 | C66: 2025-02-28 | D66: 5 | E66: 2025-02-28 | F66: 31 | G66: 934 | H66: 2344.697237 | I66: 368.0903337 | J66: 53.57544372 | K66: 0 | L66: 0 | M66: 421.6657774 | N66: 1976.606903 | O66: 0.5062677961 | P66: 0.5062677961 | R66: 421.6657774 | S66: 934 | T66: 2.315415489 | U66: 182.11
B67: 32 | C67: 2025-03-28 | D67: 5 | E67: 2025-03-28 | F67: 28 | G67: 962 | H67: 1976.606903 | I67: 380.9165682 | J67: 40.74920921 | K67: 0 | L67: 0 | M67: 421.6657774 | N67: 1595.690335 | O67: 0.496041534 | P67: 0.496041534 | R67: 421.6657774 | S67: 962 | T67: 2.374433409 | U67: 177.59
B68: 33 | C68: 2025-04-28 | D68: 1 | E68: 2025-04-28 | F68: 31 | G68: 993 | H68: 1595.690335 | I68: 385.2048576 | J68: 36.46091973 | K68: 0 | L68: 0 | M68: 421.6657774 | N68: 1210.485477 | O68: 0.4849603732 | P68: 0.4849603732 | R68: 421.6657774 | S68: 993 | T68: 2.441530981 | U68: 172.71
B69: 34 | C69: 2025-05-28 | D69: 3 | E69: 2025-05-28 | F69: 30 | G69: 1023 | H69: 1210.485477 | I69: 394.908661 | J69: 26.75711642 | K69: 0 | L69: 0 | M69: 421.6657774 | N69: 815.5768162 | O69: 0.474472421 | P69: 0.474472421 | R69: 421.6657774 | S69: 1023 | T69: 2.508268879 | U69: 168.11
B70: 35 | C70: 2025-06-28 | D70: 6 | E70: 2025-06-28 | F70: 31 | G70: 1054 | H70: 815.5768162 | I70: 403.0301561 | J70: 18.63562132 | K70: 0 | L70: 0 | M70: 421.6657774 | N70: 412.5466601 | O70: 0.4638730965 | P70: 0.4638730965 | R70: 421.6657774 | S70: 1054 | T70: 2.57914842 | U70: 163.49
B71: 36 | C71: 2025-07-28 | D71: 1 | E71: 2025-07-28 | F71: 30 | G71: 1084 | H71: 412.5466601 | I71: 412.5466601 | J71: 9.119117266 | K71: 0 | L71: 0 | M71: 421.6657774 | N71: 0 | O71: 0.4538411864 | P71: 0.4538411864 | R71: 421.6657774 | S71: 1084 | T71: 2.649648014 | U71: 159.14
B72: 37
B73: 38
B74: 39
B75: 40
B76: 41
B77: 42
B78: 43
B79: 44
B80: 45
B81: 46
B82: 47
B83: 48
B84: 49
B85: 50
B86: 51
B87: 52
B88: 53
B89: 54
B90: 55
B91: 56
B92: 57
B93: 58
B94: 59
B95: 60
B96: 61
B97: 62
B98: 63
B99: 64
B100: 65 | D100: =IF(B100<=$C$20,WEEKDAY(C100,2),"") ->  | J100: =IF(B100>C$20,"",((1+C$25)^(F100/360)-1)*H100) ->  | K100: =IF(B100>C$20,"",C$27*C$28) ->  | L100: =IF(B100>C$20,"",C$29) ->  | N100: =IF(B100>C$20,"",H100-I100) ->  | O100: =IFERROR(IF(AND(MONTH(E100)=7,C$23=2),2/(1+C$26)^(G100/360),IF(AND(MONTH(E100)=12,C$24=2),2/(1+C$26)^(G100/360),1/(1+C$26)^(G100/360))),"") ->  | P100: =IFERROR(1/(1+C$26)^(G100/360),"") ->  | S100: =G100 ->  | T100: =IFERROR((1+C$32)^(S100/360),"") ->  | U100: =IFERROR(ROUND(R100/T100,2),"") -> 
B101: 66 | C101: =IF(B101>$C$20,"",EDATE(C100,1)) ->  | E101: =IF(D101=7,C101+1,C101) ->  | F101: =IF(B101>C$20,"",E101-E100) ->  | G101: =IFERROR(F101+G100,"") ->  | H101: =IF(B101>C$20,"",N100) ->  | I101: =IF(B101>C$20,"",M101-L101-K101-J101) ->  | M101: =IF(B101>C$20,"",IF(B101=C$20,H101+J101+K101+L101,IF(AND(C$23=2,MONTH(E101)=7),2*C$30,IF(AND(C$24=2,MONTH(E101)=12),2*C$30,C$30)))) ->  | R101: =IFERROR(I101+J101+K101+L101,"") -> 
B102: 67
B103: 68
B104: 69
B105: 70
B106: 71
B107: 72
B108: 73
B109: 74
B110: 75
B111: 76
B112: 77
B113: 78
B114: 79
B115: 80
B116: 81
B117: 82
B118: 83
B119: 84
B120: 85
B121: 86
B122: 87
B123: 88
B124: 89
B125: 90
B126: 91
B127: 92
B128: 93
B129: 94
B130: 95
B131: 96
B132: 97
B133: 98
B134: 99
B135: 100
B136: 101
B137: 102
B138: 103
B139: 104
B140: 105
B141: 106
B142: 107
B143: 108
B144: 109
B145: 110
B146: 111
B147: 112
B148: 113
B149: 114
B150: 115
B151: 116
B152: 117
B153: 118
B154: 119
B155: 120
B156: 121
B157: 122
B158: 123
B159: 124
B160: 125
B161: 126
B162: 127
B163: 128
B164: 129 | D164: =IF(B164<=$C$20,WEEKDAY(C164,2),"") ->  | J164: =IF(B164>C$20,"",((1+C$25)^(F164/360)-1)*H164) ->  | K164: =IF(B164>C$20,"",C$27*C$28) ->  | L164: =IF(B164>C$20,"",C$29) ->  | N164: =IF(B164>C$20,"",H164-I164) ->  | O164: =IFERROR(IF(AND(MONTH(E164)=7,C$23=2),2/(1+C$26)^(G164/360),IF(AND(MONTH(E164)=12,C$24=2),2/(1+C$26)^(G164/360),1/(1+C$26)^(G164/360))),"") ->  | P164: =IFERROR(1/(1+C$26)^(G164/360),"") ->  | S164: =G164 ->  | T164: =IFERROR((1+C$32)^(S164/360),"") ->  | U164: =IFERROR(ROUND(R164/T164,2),"") -> 
B165: 130 | C165: =IF(B165>$C$20,"",EDATE(C164,1)) ->  | E165: =IF(D165=7,C165+1,C165) ->  | F165: =IF(B165>C$20,"",E165-E164) ->  | G165: =IFERROR(F165+G164,"") ->  | H165: =IF(B165>C$20,"",N164) ->  | I165: =IF(B165>C$20,"",M165-L165-K165-J165) ->  | M165: =IF(B165>C$20,"",IF(B165=C$20,H165+J165+K165+L165,IF(AND(C$23=2,MONTH(E165)=7),2*C$30,IF(AND(C$24=2,MONTH(E165)=12),2*C$30,C$30)))) ->  | R165: =IFERROR(I165+J165+K165+L165,"") -> 
B166: 131
B167: 132
B168: 133
B169: 134
B170: 135
B171: 136
B172: 137
B173: 138
B174: 139
B175: 140
B176: 141
B177: 142
B178: 143
B179: 144
B180: 145
B181: 146
B182: 147
B183: 148
B184: 149
B185: 150
B186: 151
B187: 152
B188: 153
B189: 154
B190: 155
B191: 156
B192: 157
B193: 158
B194: 159
B195: 160
B196: 161
B197: 162
B198: 163
B199: 164
B200: 165
B201: 166
B202: 167
B203: 168
B204: 169
B205: 170
B206: 171
... 189 more rows

Sheet Proceso Prima de Seguro (hidden)
D2: Proceso de Cálculo de la Prima de Seguros
B7: 1) Datos esenciales del préstamo | G7: 3) Calculo del valor presente del Seguro
B9: Producto | D9: ='Vista Principal'!C9 -> Préstamos Personales (DXP) | G9: Suma de Prima Mensual | H9: =SUM(L36:L395) -> 10207.37016
B10: Tipo de Seguro | D10: ='Vista Principal'!C10 -> Seguro de Vida | G10: VPN - Valor Presente | H10: =NPV(D16,L36:L395) -> 9787.20204
B11: Tarifa | D11: ='Vista Principal'!C11 -> TARIFA TITULAR
B12: Monto inicial | D12: ='Vista Principal'!C12 -> 10000 | G12: 4) Calculo del Monto Adicional del Seguro y MAF
B13: =D10 -> Seguro de Vida | C13: =+CONCATENATE(D9,D10,D11) -> Préstamos Personales (DXP)Seguro de VidaTARIFA TITULAR | D13: =VLOOKUP(C13,CAPUCCI,2,0) -> 0.042
B14: Monto adicional Seguro de Desgravamen/ Vida | G14: Monto inicial | H14: =D12 -> 10000
B15: MAF Inicial | D15: =D12+D14 -> 10000 | G15: Monto adicional de Desgravamen / Vida | H15: =H10 -> 9787.20204
B16: Costo Capital | D16: =INDEX(_xlfn._xlws.FILTER(Tabla2[],Tabla2[TARIFA]=D11),0,2) -> 0.002871 | G16: Prima de Seguro de Desgravamen / Vida | H16: =H15/H14 -> 0.978720204
B17: Moneda | D17: ='Vista Principal'!C19 -> Soles | G17: MAF Inicial | H17: =H14+H15 -> 19787.20204
B18: Plazo Remanente Meses | D18: ='Vista Principal'!C20 -> 36
B19: Fecha de Desembolso | D19: ='Vista Principal'!C21 -> 2022-08-09
B20: Fecha de 1er Pago | D20: ='Vista Principal'!C22 -> 2022-08-31
B21: Cuota Julio | D21: ='Vista Principal'!C23 -> 1
B22: Cuota Diciembre | D22: ='Vista Principal'!C24 -> 1
B23: TEA | D23: ='Vista Principal'!C25 -> 0.3
B24: TEA TOTAL | D24: =(1+(((1+D23)^(30/360)-1)+D13))^12-1 -> 1.107711259
B25: Monto del Bien | D25: 0
B26: Seguro del Bien | D26: 0
B27: Portes | D27: 0
B28: Cuota | D28: =(D15+(D26*D25+D27)*R34)/Q34 -> 710.3453361
B30: TCEA | D30: 0.2373067527
W31: =D15-W34-D14 -> -8771.62
B33: 2) Creación de Cronograma de prima mensual
Q34: =SUM(Q36:Q395) -> 14.07765982 | R34: =SUM(R36:R395) -> 14.07765982 | W34: =SUM(W36:W395) -> 18771.62
B35: N° Cuota | D35: Fecha de pago | E35: Día | F35: Fecha de pago | G35: Días | H35: Dias Acumulados | I35: Saldo Inicial | J35: Amortización | K35: Interés | L35: Seguro Desgravamen | M35: Seguro del Bien | N35: Portes | O35: Cuota Constante | P35: Saldo Final | Q35: Factor Cronograma | R35: Factor Cronograma 2 | T35: Vector i,1 Cuota | U35: Vector i,2 Días Acum | V35: Vector i,3 Factor | W35: Vector i,4 Calculo VA | X35: VPN - Valor Presente | Y35: VPN - Valor Presente
B36: 1 | D36: =D20 -> 2022-08-31 | E36: =IF(B36<=$D$18,WEEKDAY(D36,2),"") -> 3 | F36: =IF(E36=7,D36+1,D36) -> 2022-08-31 | G36: =F36-D19 -> 22 | H36: =G36 -> 22 | I36: =D15 -> 10000 | J36: =IF(B36>D$18,"",O36-N36-M36-L36-K36) -> 242.4142989 | K36: =IF(B36>D$18,"",((1+D$23)^(G36/360)-1)*I36) -> 161.6259593 | L36: =IF(B36>D$18,"",((1+D$13)^(G36/30)-1)*I36) -> 306.3050779 | M36: =IF(B36>D$18,"",D$25*D$26) -> 0 | N36: =IF(B36>D$18,"",D$27) -> 0 | O36: =IF(B36>D$18,"",IF(B36=D$18,I36+K36+L36+M36+N36,IF(AND(D$21=2,MONTH(F36)=7),2*D$28,IF(AND(D$22=2,MONTH(F36)=12),2*D$28,D$28)))) -> 710.3453361 | P36: =IF(B36>D$18,"",I36-J36) -> 9757.585701 | Q36: =IFERROR(IF(AND(MONTH(F36)=7,D$21=2),2/(1+D$24)^(H36/360),IF(AND(MONTH(F36)=12,D$22=2),2/(1+D$24)^(H36/360),1/(1+D$24)^(H36/360))),"") -> 0.955457872 | R36: =IFERROR(1/(1+D$24)^(H36/360),"") -> 0.955457872 | T36: =IFERROR(J36+K36+L36+M36+N36,"") -> 710.3453361 | U36: =H36 -> 22 | V36: =IFERROR((1+D$30)^(U36/360),"") -> 1.013097855 | W36: =IFERROR(ROUND(T36/V36,2),"") -> 701.16 | X36: =L36/(1+$I$9) -> 306.3050779 | Y36: =L36/(1+$Q$28) -> 306.3050779
B37: 2 | D37: =IF(B37>$D$18,"",EDATE(D36,1)) -> 2022-09-30 | E37: 5 | F37: =IF(E37=7,D37+1,D37) -> 2022-09-30 | G37: =IF(B37>D$18,"",F37-F36) -> 30 | H37: =IFERROR(G37+H36,"") -> 52 | I37: =IF(B37>D$18,"",P36) -> 9757.585701 | J37: 84.84066563 | K37: 215.686071 | L37: =IF(B37>D$18,"",((1+D$13)^(G37/30)-1)*I37) -> 409.8185994 | M37: 0 | N37: 0 | O37: 710.3453361 | P37: 9672.745035 | Q37: 0.8978985771 | R37: 0.8978985771 | T37: 710.3453361 | U37: 52 | V37: 1.031235474 | W37: 688.83 | X37: =IF(O37="",0,L37/((1+$I$9)^B37)) -> 409.8185994 | Y37: =IF(O37="",0,L37/((1+$Q$28)^B37)) -> 409.8185994
B38: 3 | D38: 2022-10-30 | E38: 7 | F38: 2022-10-31 | G38: 31 | H38: 83 | I38: 9672.745035 | J38: 69.23968016 | K38: 221.0185602 | L38: 420.0870958 | M38: 0 | N38: 0 | O38: 710.3453361 | P38: 9603.505355 | Q38: 0.8420609901 | R38: 0.8420609901 | T38: 710.3453361 | U38: 83 | V38: 1.050318885 | W38: 676.31 | X38: 420.0870958 | Y38: 420.0870958
B39: 4 | D39: 2022-11-30 | E39: 3 | F39: 2022-11-30 | G39: 30 | H39: 113 | I39: 9603.505355 | J39: 94.71790154 | K39: 212.2802097 | L39: 403.3472249 | M39: 0 | N39: 0 | O39: 710.3453361 | P39: 9508.787454 | Q39: 0.7913330215 | R39: 0.7913330215 | T39: 710.3453361 | U39: 113 | V39: 1.069122878 | W39: 664.42 | X39: 403.3472249 | Y39: 403.3472249
B40: 5 | D40: 2022-12-30 | E40: 5 | F40: 2022-12-30 | G40: 30 | H40: 143 | I40: 9508.787454 | J40: 100.7897406 | K40: 210.1865225 | L40: 399.3690731 | M40: 0 | N40: 0 | O40: 710.3453361 | P40: 9407.997713 | Q40: 0.7436610391 | R40: 0.7436610391 | T40: 710.3453361 | U40: 143 | V40: 1.088263521 | W40: 652.73 | X40: 399.3690731 | Y40: 399.3690731
B41: 6 | D41: 2023-01-30 | E41: 1 | F41: 2023-01-30 | G41: 31 | H41: 174 | I41: 9407.997713 | J41: 86.78702635 | K41: 214.9691841 | L41: 408.5891256 | M41: 0 | N41: 0 | O41: 710.3453361 | P41: 9321.210687 | Q41: 0.6974150165 | R41: 0.6974150165 | T41: 710.3453361 | U41: 174 | V41: 1.108402258 | W41: 640.87 | X41: 408.5891256 | Y41: 408.5891256
B42: 7 | D42: 2023-02-28 | E42: 2 | F42: 2023-02-28 | G42: 29 | H42: 203 | I42: 9321.210687 | J42: 133.0659295 | K42: 199.099409 | L42: 378.1799976 | M42: 0 | N42: 0 | O42: 710.3453361 | P42: 9188.144757 | Q42: 0.6567597213 | R42: 0.6567597213 | T42: 710.3453361 | U42: 203 | V42: 1.127578974 | W42: 629.97 | X42: 378.1799976 | Y42: 378.1799976
B43: 8 | D43: 2023-03-28 | E43: 2 | F43: 2023-03-28 | G43: 28 | H43: 231 | I43: 9188.144757 | J43: 161.2465551 | K43: 189.4203812 | L43: 359.6783999 | M43: 0 | N43: 0 | O43: 710.3453361 | P43: 9026.898202 | Q43: 0.6197566578 | R43: 0.6197566578 | T43: 710.3453361 | U43: 231 | V43: 1.146409178 | W43: 619.63 | X43: 359.6783999 | Y43: 359.6783999
B44: 9 | D44: 2023-04-28 | E44: 5 | F44: 2023-04-28 | G44: 31 | H44: 262 | I44: 9026.898202 | J44: 112.0461489 | K44: 206.2612047 | L44: 392.0379826 | M44: 0 | N44: 0 | O44: 710.3453361 | P44: 8914.852053 | Q44: 0.5812158725 | R44: 0.5812158725 | T44: 710.3453361 | U44: 262 | V44: 1.167623923 | W44: 608.37 | X44: 392.0379826 | Y44: 392.0379826
B45: 10 | D45: 2023-05-28 | E45: 7 | F45: 2023-05-29 | G45: 31 | H45: 293 | I45: 8914.852053 | J45: 119.4725226 | K45: 203.7009926 | L45: 387.1718209 | M45: 0 | N45: 0 | O45: 710.3453361 | P45: 8795.379531 | Q45: 0.5450718216 | R45: 0.5450718216 | T45: 710.3453361 | U45: 293 | V45: 1.189231255 | W45: 597.31 | X45: 387.1718209 | Y45: 387.1718209
B46: 11 | D46: 2023-06-28 | E46: 3 | F46: 2023-06-28 | G46: 30 | H46: 323 | I46: 8795.379531 | J46: 146.5223635 | K46: 194.4170323 | L46: 369.4059403 | M46: 0 | N46: 0 | O46: 710.3453361 | P46: 8648.857167 | Q46: 0.5122352616 | R46: 0.5122352616 | T46: 710.3453361 | U46: 323 | V46: 1.210522213 | W46: 586.81 | X46: 369.4059403 | Y46: 369.4059403
B47: 12 | D47: 2023-07-28 | E47: 5 | F47: 2023-07-28 | G47: 30 | H47: 353 | I47: 8648.857167 | J47: 155.9150991 | K47: 191.1782359 | L47: 363.252001 | M47: 0 | N47: 0 | O47: 710.3453361 | P47: 8492.942068 | Q47: 0.4813768623 | R47: 0.4813768623 | T47: 710.3453361 | U47: 353 | V47: 1.232194346 | W47: 576.49 | X47: 363.252001 | Y47: 363.252001
B48: 13 | D48: 2023-08-28 | E48: 1 | F48: 2023-08-28 | G48: 31 | H48: 384 | I48: =IF(B48>D$18,"",P47) -> 8492.942068 | J48: =IF(B48>D$18,"",O48-N48-M48-L48-K48) -> 147.436547 | K48: =IF(B48>D$18,"",((1+D$23)^(G48/360)-1)*I48) -> 194.0605093 | L48: 368.8482799 | M48: 0 | N48: 0 | O48: 710.3453361 | P48: =IF(B48>D$18,"",I48-J48) -> 8345.505521 | Q48: 0.4514414964 | R48: 0.4514414964 | T48: =IFERROR(J48+K48+L48+M48+N48,"") -> 710.3453361 | U48: 384 | V48: 1.254996579 | W48: 566.01 | X48: 368.8482799 | Y48: =IF(O48="",0,L48/((1+$Q$28)^B48)) -> 368.8482799
B49: 14 | D49: 2023-09-28 | E49: 4 | F49: 2023-09-28 | G49: 31 | H49: 415 | I49: 8345.505521 | J49: 157.2085821 | K49: 190.69164 | L49: 362.445114 | M49: 0 | N49: 0 | O49: 710.3453361 | P49: 8188.296939 | Q49: 0.4233677201 | R49: 0.4233677201 | T49: 710.3453361 | U49: 415 | V49: 1.278220776 | W49: 555.73 | X49: 362.445114 | Y49: 362.445114
B50: 15 | D50: 2023-10-28 | E50: 6 | F50: 2023-10-28 | G50: 30 | H50: 445 | I50: 8188.296939 | J50: 185.4390595 | K50: 180.9978051 | L50: 343.9084714 | M50: 0 | N50: 0 | O50: 710.3453361 | P50: 8002.857879 | Q50: 0.3978629352 | R50: 0.3978629352 | T50: 710.3453361 | U50: 445 | V50: 1.301104925 | W50: 545.96 | X50: 343.9084714 | Y50: 343.9084714
B51: 16 | D51: 2023-11-28 | E51: 2 | F51: 2023-11-28 | G51: 31 | H51: 476 | I51: 8002.857879 | J51: 179.9191302 | K51: 182.8622712 | L51: 347.5639348 | M51: 0 | N51: 0 | O51: 710.3453361 | P51: 7822.938749 | Q51: 0.3731210469 | R51: 0.3731210469 | T51: 710.3453361 | U51: 476 | V51: 1.325182375 | W51: 536.04 | X51: 347.5639348 | Y51: 347.5639348
B52: 17 | D52: 2023-12-28 | E52: 4 | F52: 2023-12-28 | G52: 30 | H52: 506 | I52: 7822.938749 | J52: 208.8601456 | K52: 172.9217631 | L52: 328.5634275 | M52: 0 | N52: 0 | O52: 710.3453361 | P52: 7614.078604 | Q52: 0.3506432538 | R52: 0.3506432538 | T52: 710.3453361 | U52: 506 | V52: 1.348907283 | W52: 526.61 | X52: 328.5634275 | Y52: 328.5634275
B53: 18 | D53: 2024-01-28 | E53: 7 | F53: 2024-01-29 | G53: 32 | H53: 538 | I53: 7614.078604 | J53: 189.1064399 | K53: 179.6567362 | L53: 341.58216 | M53: 0 | N53: 0 | O53: 710.3453361 | P53: 7424.972164 | Q53: 0.3281574569 | R53: 0.3281574569 | T53: 710.3453361 | U53: 538 | V53: 1.374682207 | W53: 516.73 | X53: 341.58216 | Y53: 341.58216
B54: 19 | D54: 2024-02-28 | E54: 3 | F54: 2024-02-28 | G54: 30 | H54: 568 | I54: 7424.972164 | J54: 234.3715749 | K54: 164.1249304 | L54: 311.8488309 | M54: 0 | N54: 0 | O54: 710.3453361 | P54: 7190.600589 | Q54: 0.3083883887 | R54: 0.3083883887 | T54: 710.3453361 | U54: 568 | V54: 1.399293317 | W54: 507.65 | X54: 311.8488309 | Y54: 311.8488309
B55: 20 | D55: 2024-03-28 | E55: 4 | F55: 2024-03-28 | G55: 29 | H55: 597 | I55: 7190.600589 | J55: 265.0184595 | K55: 153.5899547 | L55: 291.7369219 | M55: 0 | N55: 0 | O55: 710.3453361 | P55: 6925.582129 | Q55: 0.2904111145 | R55: 0.2904111145 | T55: 710.3453361 | U55: 597 | V55: 1.423502804 | W55: 499.01 | X55: 291.7369219 | Y55: 291.7369219
B56: 21 | D56: 2024-04-28 | E56: 7 | F56: 2024-04-29 | G56: 32 | H56: 629 | I56: 6925.582129 | J56: 236.2390164 | K56: 163.4114312 | L56: 310.6948886 | M56: 0 | N56: 0 | O56: 710.3453361 | P56: 6689.343113 | Q56: 0.2717878407 | R56: 0.2717878407 | T56: 710.3453361 | U56: 629 | V56: 1.450703099 | W56: 489.66 | X56: 310.6948886 | Y56: 310.6948886
B57: 22 | D57: 2024-05-28 | E57: 2 | F57: 2024-05-28 | G57: 29 | H57: 658 | I57: 6689.343113 | J57: 296.06224 | K57: 142.8831839 | L57: 271.3999123 | M57: 0 | N57: 0 | O57: 710.3453361 | P57: 6393.280873 | Q57: 0.2559441685 | R57: 0.2559441685 | T57: 710.3453361 | U57: 658 | V57: 1.475802038 | W57: 481.33 | X57: 271.3999123 | Y57: 271.3999123
B58: 23 | D58: 2024-06-28 | E58: 5 | F58: 2024-06-28 | G58: 31 | H58: 689 | I58: 6393.280873 | J58: 286.6012477 | K58: 146.0840463 | L58: 277.6600422 | M58: 0 | N58: 0 | O58: 710.3453361 | P58: 6106.679625 | Q58: 0.2400277776 | R58: 0.2400277776 | T58: 710.3453361 | U58: 689 | V58: 1.503112326 | W58: 472.58 | X58: 277.6600422 | Y58: 277.6600422
B59: 24 | D59: 2024-07-28 | E59: 7 | F59: 2024-07-29 | G59: 31 | H59: 720 | I59: 6106.679625 | J59: 305.5970633 | K59: 139.5353163 | L59: 265.2129565 | M59: 0 | N59: 0 | O59: 710.3453361 | P59: 5801.082562 | Q59: 0.2251011787 | R59: 0.2251011787 | T59: 710.3453361 | U59: 720 | V59: 1.530928 | W59: 464 | X59: 265.2129565 | Y59: 265.2129565
B60: 25 | D60: 2024-08-28 | E60: 3 | F60: 2024-08-28 | G60: 30 | H60: 750 | I60: 5801.082562 | J60: 338.4701256 | K60: 128.2297429 | L60: 243.6454676 | M60: 0 | N60: 0 | O60: 710.3453361 | P60: 5462.612437 | Q60: 0.2115404917 | R60: 0.2115404917 | T60: 710.3453361 | U60: 750 | V60: 1.558336399 | W60: 455.84 | X60: 243.6454676 | Y60: 243.6454676
B61: 26 | D61: 2024-09-28 | E61: 6 | F61: 2024-09-28 | G61: 31 | H61: 781 | I61: 5462.612437 | J61: 348.2855778 | K61: 124.818625 | L61: 237.2411333 | M61: 0 | N61: 0 | O61: 710.3453361 | P61: 5114.326859 | Q61: 0.1983854306 | R61: 0.1983854306 | T61: 710.3453361 | U61: 781 | V61: 1.587174016 | W61: 447.55 | X61: 237.2411333 | Y61: 237.2411333
B62: 27 | D62: 2024-10-28 | E62: 1 | F62: 2024-10-28 | G62: 30 | H62: 811 | I62: 5114.326859 | J62: 382.4942227 | K62: 113.0493854 | L62: 214.8017281 | M62: 0 | N62: 0 | O62: 710.3453361 | P62: 4731.832636 | Q62: 0.1864341705 | R62: 0.1864341705 | T62: 710.3453361 | U62: 811 | V62: 1.615589395 | W62: 439.68 | X62: 214.8017281 | Y62: 214.8017281
B63: 28 | D63: 2024-11-28 | E63: 4 | F63: 2024-11-28 | G63: 31 | H63: 842 | I63: 4731.832636 | J63: 396.7213695 | K63: 108.1205834 | L63: 205.5033832 | M63: 0 | N63: 0 | O63: 710.3453361 | P63: 4335.111267 | Q63: 0.1748403954 | R63: 0.1748403954 | T63: 710.3453361 | U63: 842 | V63: 1.645486501 | W63: 431.69 | X63: 205.5033832 | Y63: 205.5033832
B64: 29 | D64: 2024-12-28 | E64: 6 | F64: 2024-12-28 | G64: 30 | H64: 872 | I64: 4335.111267 | J64: 432.4454101 | K64: 95.82525281 | L64: 182.0746732 | M64: 0 | N64: 0 | O64: 710.3453361 | P64: 3902.665856 | Q64: 0.1643075502 | R64: 0.1643075502 | T64: 710.3453361 | U64: 872 | V64: 1.674945855 | W64: 424.1 | X64: 182.0746732 | Y64: 182.0746732
B65: 30 | D65: 2025-01-28 | E65: 2 | F65: 2025-01-28 | G65: 31 | H65: 903 | I65: 3902.665856 | J65: 451.6782106 | K65: 89.17443655 | L65: 169.4926889 | M65: 0 | N65: 0 | O65: 710.3453361 | P65: 3450.987646 | Q65: 0.1540897624 | R65: 0.1540897624 | T65: 710.3453361 | U65: 903 | V65: 1.705941376 | W65: 416.39 | X65: 169.4926889 | Y65: 169.4926889
B66: 31 | D66: 2025-02-28 | E66: 5 | F66: 2025-02-28 | G66: 31 | H66: 934 | I66: 3450.987646 | J66: 481.615261 | K66: 78.85376052 | L66: 149.8763146 | M66: 0 | N66: 0 | O66: 710.3453361 | P66: 2969.372385 | Q66: 0.1445073878 | R66: 0.1445073878 | T66: 710.3453361 | U66: 934 | V66: 1.73751048 | W66: 408.83 | X66: 149.8763146 | Y66: 149.8763146
B67: 32 | D67: 2025-03-28 | E67: 5 | F67: 2025-03-28 | G67: 28 | H67: 962 | I67: 2969.372385 | J67: 532.8907139 | K67: 61.21580186 | L67: 116.2388204 | M67: 0 | N67: 0 | O67: 710.3453361 | P67: 2436.481671 | Q67: 0.1363655729 | R67: 0.1363655729 | T67: 710.3453361 | U67: 962 | V67: 1.766526343 | W67: 402.11 | X67: 116.2388204 | Y67: 116.2388204
B68: 33 | D68: 2025-04-28 | E68: 1 | F68: 2025-04-28 | G68: 31 | H68: 993 | I68: 2436.481671 | J68: 548.8563096 | K68: 55.67268328 | L68: 105.8163433 | M68: 0 | N68: 0 | O68: 710.3453361 | P68: 1887.625361 | Q68: 0.1278854119 | R68: 0.1278854119 | T68: 710.3453361 | U68: 993 | V68: 1.799216596 | W68: 394.81 | X68: 105.8163433 | Y68: 105.8163433
B69: 34 | D69: 2025-05-28 | E69: 3 | F69: 2025-05-28 | G69: 30 | H69: 1023 | I69: 1887.625361 | J69: 589.3401494 | K69: 41.72492154 | L69: 79.28026517 | M69: 0 | N69: 0 | O69: 710.3453361 | P69: 1298.285212 | Q69: 0.1201812583 | R69: 0.1201812583 | T69: 710.3453361 | U69: 1023 | V69: 1.8314282 | W69: 387.86 | X69: 79.28026517 | Y69: 79.28026517
B70: 35 | D70: 2025-06-28 | E70: 6 | F70: 2025-06-28 | G70: 31 | H70: 1054 | I70: 1298.285212 | J70: 624.2955137 | K70: 29.66532532 | L70: 56.38449708 | M70: 0 | N70: 0 | O70: 710.3453361 | P70: 673.9896982 | Q70: 0.1127075507 | R70: 0.1127075507 | T70: 710.3453361 | U70: 1054 | V70: 1.865319487 | W70: 380.82 | X70: 56.38449708 | Y70: 56.38449708
B71: 36 | D71: 2025-07-28 | E71: 1 | F71: 2025-07-28 | G71: 30 | H71: 1084 | I71: 673.9896982 | J71: 673.9896982 | K71: 14.89817198 | L71: 28.30756732 | M71: 0 | N71: 0 | O71: 717.1954375 | P71: 0 | Q71: 0.1059177514 | R71: 0.1059177514 | T71: 717.1954375 | U71: 1084 | V71: 1.898714539 | W71: 377.73 | X71: 28.30756732 | Y71: 28.30756732
B72: 37 | X72: 0 | Y72: 0
B73: 38 | X73: 0 | Y73: 0
B74: 39 | X74: 0 | Y74: 0
B75: 40 | X75: 0 | Y75: 0
B76: 41 | X76: 0 | Y76: 0
B77: 42 | X77: 0 | Y77: 0
B78: 43 | X78: 0 | Y78: 0
B79: 44 | X79: 0 | Y79: 0
B80: 45 | X80: 0 | Y80: 0
B81: 46 | X81: 0 | Y81: 0
B82: 47 | X82: 0 | Y82: 0
B83: 48 | X83: 0 | Y83: 0
B84: 49 | X84: 0 | Y84: 0
B85: 50 | X85: 0 | Y85: 0
B86: 51 | X86: 0 | Y86: 0
B87: 52 | X87: 0 | Y87: 0
B88: 53 | X88: 0 | Y88: 0
B89: 54 | X89: 0 | Y89: 0
B90: 55 | X90: 0 | Y90: 0
B91: 56 | X91: 0 | Y91: 0
B92: 57 | X92: 0 | Y92: 0
B93: 58 | X93: 0 | Y93: 0
B94: 59 | X94: 0 | Y94: 0
B95: 60 | X95: 0 | Y95: 0
B96: 61 | X96: 0 | Y96: 0
B97: 62 | X97: 0 | Y97: 0
B98: 63 | X98: 0 | Y98: 0
B99: 64 | X99: 0 | Y99: 0
B100: 65 | E100: =IF(B100<=$D$18,WEEKDAY(D100,2),"") ->  | J100: =IF(B100>D$18,"",O100-N100-M100-L100-K100) ->  | K100: =IF(B100>D$18,"",((1+D$23)^(G100/360)-1)*I100) ->  | M100: =IF(B100>D$18,"",D$25*D$26) ->  | N100: =IF(B100>D$18,"",D$27) ->  | O100: =IF(B100>D$18,"",IF(B100=D$18,I100+K100+L100+M100+N100,IF(AND(D$21=2,MONTH(F100)=7),2*D$28,IF(AND(D$22=2,MONTH(F100)=12),2*D$28,D$28)))) ->  | P100: =IF(B100>D$18,"",I100-J100) ->  | Q100: =IFERROR(IF(AND(MONTH(F100)=7,D$21=2),2/(1+D$24)^(H100/360),IF(AND(MONTH(F100)=12,D$22=2),2/(1+D$24)^(H100/360),1/(1+D$24)^(H100/360))),"") ->  | R100: =IFERROR(1/(1+D$24)^(H100/360),"") ->  | U100: =H100 ->  | V100: =IFERROR((1+D$30)^(U100/360),"") ->  | W100: =IFERROR(ROUND(T100/V100,2),"") ->  | X100: 0 | Y100: 0
B101: 66 | D101: =IF(B101>$D$18,"",EDATE(D100,1)) ->  | F101: =IF(E101=7,D101+1,D101) ->  | G101: =IF(B101>D$18,"",F101-F100) ->  | H101: =IFERROR(G101+H100,"") ->  | I101: =IF(B101>D$18,"",P100) ->  | L101: =IF(B101>D$18,"",((1+D$13)^(G101/30)-1)*I101) ->  | T101: =IFERROR(J101+K101+L101+M101+N101,"") ->  | X101: =IF(O101="",0,L101/((1+$I$9)^B101)) -> 0 | Y101: 0
B102: 67 | X102: 0 | Y102: =IF(O102="",0,L102/((1+$Q$28)^B102)) -> 0
B103: 68 | X103: 0 | Y103: 0
B104: 69 | X104: 0 | Y104: 0
B105: 70 | X105: 0 | Y105: 0
B106: 71 | X106: 0 | Y106: 0
B107: 72 | X107: 0 | Y107: 0
B108: 73 | X108: 0 | Y108: 0
B109: 74 | X109: 0 | Y109: 0
B110: 75 | X110: 0 | Y110: 0
B111: 76 | X111: 0 | Y111: 0
B112: 77 | X112: 0 | Y112: 0
B113: 78 | X113: 0 | Y113: 0
B114: 79 | X114: 0 | Y114: 0
B115: 80 | X115: 0 | Y115: 0
B116: 81 | X116: 0 | Y116: 0
B117: 82 | X117: 0 | Y117: 0
B118: 83 | X118: 0 | Y118: 0
B119: 84 | X119: 0 | Y119: 0
B120: 85 | X120: 0 | Y120: 0
B121: 86 | X121: 0 | Y121: 0
B122: 87 | X122: 0 | Y122: 0
B123: 88 | X123: 0 | Y123: 0
B124: 89 | X124: 0 | Y124: 0
B125: 90 | X125: 0 | Y125: 0
B126: 91 | X126: 0 | Y126: 0
B127: 92 | X127: 0 | Y127: 0
B128: 93 | X128: 0 | Y128: 0
B129: 94 | X129: 0 | Y129: 0
B130: 95 | X130: 0 | Y130: 0
B131: 96 | X131: 0 | Y131: 0
B132: 97 | X132: 0 | Y132: 0
B133: 98 | X133: 0 | Y133: 0
B134: 99 | X134: 0 | Y134: 0
B135: 100 | X135: 0 | Y135: 0
B136: 101 | X136: 0 | Y136: 0
B137: 102 | X137: 0 | Y137: 0
B138: 103 | X138: 0 | Y138: 0
B139: 104 | X139: 0 | Y139: 0
B140: 105 | X140: 0 | Y140: 0
B141: 106 | X141: 0 | Y141: 0
B142: 107 | X142: 0 | Y142: 0
B143: 108 | X143: 0 | Y143: 0
B144: 109 | X144: 0 | Y144: 0
B145: 110 | X145: 0 | Y145: 0
B146: 111 | X146: 0 | Y146: 0
B147: 112 | X147: 0 | Y147: 0
B148: 113 | X148: 0 | Y148: 0
B149: 114 | X149: 0 | Y149: 0
B150: 115 | X150: 0 | Y150: 0
B151: 116 | X151: 0 | Y151: 0
B152: 117 | X152: 0 | Y152: 0
B153: 118 | X153: 0 | Y153: 0
B154: 119 | X154: 0 | Y154: 0
B155: 120 | X155: 0 | Y155: 0
B156: 121 | X156: 0 | Y156: 0
B157: 122 | X157: 0 | Y157: 0
B158: 123 | X158: 0 | Y158: 0
B159: 124 | X159: 0 | Y159: 0
B160: 125 | X160: 0 | Y160: 0
B161: 126 | X161: 0 | Y161: 0
B162: 127 | X162: 0 | Y162: 0
B163: 128 | X163: 0 | Y163: 0
B164: 129 | E164: =IF(B164<=$D$18,WEEKDAY(D164,2),"") ->  | J164: =IF(B164>D$18,"",O164-N164-M164-L164-K164) ->  | K164: =IF(B164>D$18,"",((1+D$23)^(G164/360)-1)*I164) ->  | M164: =IF(B164>D$18,"",D$25*D$26) ->  | N164: =IF(B164>D$18,"",D$27) ->  | O164: =IF(B164>D$18,"",IF(B164=D$18,I164+K164+L164+M164+N164,IF(AND(D$21=2,MONTH(F164)=7),2*D$28,IF(AND(D$22=2,MONTH(F164)=12),2*D$28,D$28)))) ->  | P164: =IF(B164>D$18,"",I164-J164) ->  | Q164: =IFERROR(IF(AND(MONTH(F164)=7,D$21=2),2/(1+D$24)^(H164/360),IF(AND(MONTH(F164)=12,D$22=2),2/(1+D$24)^(H164/360),1/(1+D$24)^(H164/360))),"") ->  | R164: =IFERROR(1/(1+D$24)^(H164/360),"") ->  | U164: =H164 ->  | V164: =IFERROR((1+D$30)^(U164/360),"") ->  | W164: =IFERROR(ROUND(T164/V164,2),"") ->  | X164: 0 | Y164: 0
B165: 130 | D165: =IF(B165>$D$18,"",EDATE(D164,1)) ->  | F165: =IF(E165=7,D165+1,D165) ->  | G165: =IF(B165>D$18,"",F165-F164) ->  | H165: =IFERROR(G165+H164,"") ->  | I165: =IF(B165>D$18,"",P164) ->  | L165: =IF(B165>D$18,"",((1+D$13)^(G165/30)-1)*I165) ->  | T165: =IFERROR(J165+K165+L165+M165+N165,"") ->  | X165: =IF(O165="",0,L165/((1+$I$9)^B165)) -> 0 | Y165: 0
B166: 131 | X166: 0 | Y166: =IF(O166="",0,L166/((1+$Q$28)^B166)) -> 0
B167: 132 | X167: 0 | Y167: 0
B168: 133 | X168: 0 | Y168: 0
B169: 134 | X169: 0 | Y169: 0
B170: 135 | X170: 0 | Y170: 0
B171: 136 | X171: 0 | Y171: 0
B172: 137 | X172: 0 | Y172: 0
B173: 138 | X173: 0 | Y173: 0
B174: 139 | X174: 0 | Y174: 0
B175: 140 | X175: 0 | Y175: 0
B176: 141 | X176: 0 | Y176: 0
B177: 142 | X177: 0 | Y177: 0
B178: 143 | X178: 0 | Y178: 0
B179: 144 | X179: 0 | Y179: 0
B180: 145 | X180: 0 | Y180: 0
B181: 146 | X181: 0 | Y181: 0
B182: 147 | X182: 0 | Y182: 0
B183: 148 | X183: 0 | Y183: 0
B184: 149 | X184: 0 | Y184: 0
B185: 150 | X185: 0 | Y185: 0
B186: 151 | X186: 0 | Y186: 0
B187: 152 | X187: 0 | Y187: 0
B188: 153 | X188: 0 | Y188: 0
B189: 154 | X189: 0 | Y189: 0
B190: 155 | X190: 0 | Y190: 0
B191: 156 | X191: 0 | Y191: 0
B192: 157 | X192: 0 | Y192: 0
B193: 158 | X193: 0 | Y193: 0
B194: 159 | X194: 0 | Y194: 0
B195: 160 | X195: 0 | Y195: 0
B196: 161 | X196: 0 | Y196: 0
B197: 162 | X197: 0 | Y197: 0
B198: 163 | X198: 0 | Y198: 0
B199: 164 | X199: 0 | Y199: 0
B200: 165 | X200: 0 | Y200: 0
B201: 166 | X201: 0 | Y201: 0
B202: 167 | X202: 0 | Y202: 0
B203: 168 | X203: 0 | Y203: 0
B204: 169 | X204: 0 | Y204: 0
B205: 170 | X205: 0 | Y205: 0
B206: 171 | X206: 0 | Y206: 0
B207: 172 | X207: 0 | Y207: 0
B208: 173 | X208: 0 | Y208: 0
... 187 more rows

Sheet TarifarioBD (hidden)
A1: TARIFA | B1: PRODUCTO | C1: TIPO_SEGURO | D1: Valor | E1: < | F1: Columna2 | H1: TARIFA | I1: PRODUCTO | J1: TIPO_SEGURO
A2: TARIFA TITULAR | B2: Préstamos Personales (DXP) | C2: Seguro de Vida | D2: 0.042 | E2: Préstamos Personales (DXP)Seguro de VidaTARIFA TITULAR | F2: 0.042 | H2: TARIFA TITULAR | J2: Seguro de Vida
A3: TARIFA TITULAR | B3: Préstamos Personales (DXP) | C3: Seguro de Desgravamen | D3: 0.001832 | E3: Préstamos Personales (DXP)Seguro de DesgravamenTARIFA TITULAR | F3: 0.001832 | H3: TARIFA TITULAR + CONYUGE | J3: Seguro de Desgravamen
A4: TARIFA TITULAR | B4: Préstamos Personales (DXP) | C4: Seguro de Desgravamen con Devolución | D4: 0.002342 | E4: Préstamos Personales (DXP)Seguro de Desgravamen con DevoluciónTARIFA TITULAR | F4: 0.002342 | I4: Préstamos Personales (DXP) | J4: Seguro de Desgravamen con Devolución
A5: TARIFA TITULAR + CONYUGE | B5: Préstamos Personales (DXP) | C5: Seguro de Vida | D5: 0.084 | E5: Préstamos Personales (DXP)Seguro de VidaTARIFA TITULAR + CONYUGE | F5: 0.084
A6: TARIFA TITULAR + CONYUGE | B6: Préstamos Personales (DXP) | C6: Seguro de Desgravamen | D6: 0.003664 | E6: Préstamos Personales (DXP)Seguro de DesgravamenTARIFA TITULAR + CONYUGE | F6: 0.003664
A7: TARIFA TITULAR + CONYUGE | B7: Préstamos Personales (DXP) | C7: Seguro de Desgravamen con Devolución | D7: 0.004684 | E7: Préstamos Personales (DXP)Seguro de Desgravamen con DevoluciónTARIFA TITULAR + CONYUGE | F7: 0.004684
A8: TARIFA TITULAR | B8: Préstamos Personales (LD Y PA) (Clientes) | C8: Seguro de Vida | D8: 0.037 | E8: Préstamos Personales (LD Y PA) (Clientes)Seguro de VidaTARIFA TITULAR | F8: 0.037
A9: TARIFA TITULAR | B9: Préstamos Personales (LD Y PA) (Clientes) | C9: Seguro de Desgravamen | D9: 0.001995 | E9: Préstamos Personales (LD Y PA) (Clientes)Seguro de DesgravamenTARIFA TITULAR | F9: 0.001995
A10: TARIFA TITULAR | B10: Préstamos Personales (LD Y PA) (Clientes) | C10: Seguro de Desgravamen con Devolución | D10: 0.002594 | E10: Préstamos Personales (LD Y PA) (Clientes)Seguro de Desgravamen con DevoluciónTARIFA TITULAR | F10: 0.002594
A11: TARIFA TITULAR + CONYUGE | B11: Préstamos Personales (LD Y PA) (Clientes) | C11: Seguro de Vida | D11: 0.074 | E11: Préstamos Personales (LD Y PA) (Clientes)Seguro de VidaTARIFA TITULAR + CONYUGE | F11: 0.074
A12: TARIFA TITULAR + CONYUGE | B12: Préstamos Personales (LD Y PA) (Clientes) | C12: Seguro de Desgravamen | D12: 0.00399 | E12: Préstamos Personales (LD Y PA) (Clientes)Seguro de DesgravamenTARIFA TITULAR + CONYUGE | F12: 0.00399
A13: TARIFA TITULAR + CONYUGE | B13: Préstamos Personales (LD Y PA) (Clientes) | C13: Seguro de Desgravamen con Devolución | D13: 0.005188 | E13: Préstamos Personales (LD Y PA) (Clientes)Seguro de Desgravamen con DevoluciónTARIFA TITULAR + CONYUGE | F13: 0.005188
A14: TARIFA TITULAR | B14: Préstamos Personales (LD Y PA) (Empleados) | C14: Seguro de Vida | D14: 0.015866 | E14: Préstamos Personales (LD Y PA) (Empleados)Seguro de VidaTARIFA TITULAR | F14: 0.015866
A15: TARIFA TITULAR | B15: Préstamos Personales (LD Y PA) (Empleados) | C15: Seguro de Desgravamen | D15: 0.000855 | E15: Préstamos Personales (LD Y PA) (Empleados)Seguro de DesgravamenTARIFA TITULAR | F15: 0.000855
A16: TARIFA TITULAR | B16: Préstamos Personales (LD Y PA) (Empleados) | C16: Seguro de Desgravamen con Devolución | D16: 0.001112 | E16: Préstamos Personales (LD Y PA) (Empleados)Seguro de Desgravamen con DevoluciónTARIFA TITULAR | F16: 0.001112
A17: TARIFA TITULAR + CONYUGE | B17: Préstamos Personales (LD Y PA) (Empleados) | C17: Seguro de Vida | D17: 0.031732 | E17: Préstamos Personales (LD Y PA) (Empleados)Seguro de VidaTARIFA TITULAR + CONYUGE | F17: 0.031732
A18: TARIFA TITULAR + CONYUGE | B18: Préstamos Personales (LD Y PA) (Empleados) | C18: Seguro de Desgravamen | D18: 0.00171 | E18: Préstamos Personales (LD Y PA) (Empleados)Seguro de DesgravamenTARIFA TITULAR + CONYUGE | F18: 0.00171
A19: TARIFA TITULAR + CONYUGE | B19: Préstamos Personales (LD Y PA) (Empleados) | C19: Seguro de Desgravamen con Devolución | D19: 0.002224 | E19: Préstamos Personales (LD Y PA) (Empleados)Seguro de Desgravamen con DevoluciónTARIFA TITULAR + CONYUGE | F19: 0.002224

Sheet CostoCapBD (hidden)
A1: TARIFA | B1: CostoCapital
A2: TARIFA TITULAR | B2: 0.002871
A3: TARIFA TITULAR + CONYUGE | B3: 0.002871
